[Event "Titled Tuesday Blitz June 27 Early 2023"]
[White "Ginzburg, Yakov"]
[Black "Sowul, Bartosz"]
[WhiteFideId "4157176"]
[BlackFideId "1137590"]
[WhiteElo "2509"]
[BlackElo "2603"]
[Result "0-1"]
[Round "11"]
[TimeControl "180+2"]
[Date "2023.06.27"]
[WhiteClock "0:00:19"]
[BlackClock "0:00:44"]
[Board "43"]

1. d4 {[%clk 0:03:00]}  Nf6 {[%clk 0:03:00]} 2. Nf3 {[%clk 0:03:00]}  c5 {[%clk 0:02:59]} 3. g3 {[%clk 0:02:58]}  b6 {[%clk 0:02:57]} 4. Bg2 {[%clk 0:02:57]}  Bb7 {[%clk 0:02:57]} 5. O-O {[%clk 0:02:57]}  g6 {[%clk 0:02:58]} 6. c4 {[%clk 0:02:56]}  Bg7 {[%clk 0:02:55]} 7. d5 {[%clk 0:02:54]}  O-O {[%clk 0:02:54]} 8. Nc3 {[%clk 0:02:54]}  e6 {[%clk 0:02:52]} 9. e4 {[%clk 0:02:52]}  exd5 {[%clk 0:02:50]} 10. exd5 {[%clk 0:02:50]}  d6 {[%clk 0:02:50]} 11. Be3 {[%clk 0:02:39]}  Re8 {[%clk 0:02:46]} 12. Re1 {[%clk 0:02:38]}  Na6 {[%clk 0:02:42]} 13. Qd2 {[%clk 0:02:37]}  Nc7 {[%clk 0:02:40]} 14. Bg5 {[%clk 0:02:33]}  Qd7 {[%clk 0:02:38]} 15. h3 {[%clk 0:02:27]}  b5 {[%clk 0:02:34]} 16. b3 {[%clk 0:02:24]}  b4 {[%clk 0:02:30]} 17. Ne2 {[%clk 0:02:07]}  Ne4 {[%clk 0:02:26]} 18. Qf4 {[%clk 0:02:07]}  Nxg5 {[%clk 0:02:25]} 19. Nxg5 {[%clk 0:02:03]}  Bxa1 {[%clk 0:02:19]} 20. Rxa1 {[%clk 0:01:52]}  Rxe2 {[%clk 0:02:16]} 21. Qh4 {[%clk 0:01:44]}  f6 {[%clk 0:01:58]} 22. Ne4 {[%clk 0:01:40]}  Rxe4 {[%clk 0:01:57]} 23. Bxe4 {[%clk 0:01:40]}  Re8 {[%clk 0:01:54]} 24. Bf3 {[%clk 0:01:29]}  Qf5 {[%clk 0:01:50]} 25. Bg4 {[%clk 0:01:15]}  Qg5 {[%clk 0:01:43]} 26. Qxg5 {[%clk 0:01:14]}  fxg5 {[%clk 0:01:44]} 27. a3 {[%clk 0:01:13]}  bxa3 {[%clk 0:01:31]} 28. Rxa3 {[%clk 0:01:13]}  a6 {[%clk 0:01:31]} 29. b4 {[%clk 0:01:11]}  cxb4 {[%clk 0:01:30]} 30. Ra4 {[%clk 0:01:11]}  Re1+ {[%clk 0:01:25]} 31. Kg2 {[%clk 0:01:11]}  Rb1 {[%clk 0:01:26]} 32. Bf3 {[%clk 0:01:04]}  Kf8 {[%clk 0:01:18]} 33. c5 {[%clk 0:01:02]}  dxc5 {[%clk 0:01:06]} 34. d6 {[%clk 0:01:02]}  Bxf3+ {[%clk 0:01:03]} 35. Kxf3 {[%clk 0:01:03]}  Nb5 {[%clk 0:01:00]} 36. Rxa6 {[%clk 0:01:01]}  Ke8 {[%clk 0:00:59]} 37. Rb6 {[%clk 0:00:59]}  Nc3 {[%clk 0:00:53]} 38. Rb7 {[%clk 0:00:55]}  b3 {[%clk 0:00:52]} 39. h4 {[%clk 0:00:42]}  gxh4 {[%clk 0:00:51]} 40. gxh4 {[%clk 0:00:42]}  Kd8 {[%clk 0:00:49]} 41. Rxh7 {[%clk 0:00:40]}  Rd1 {[%clk 0:00:45]} 42. Rb7 {[%clk 0:00:39]}  c4 {[%clk 0:00:45]} 43. Kf4 {[%clk 0:00:34]}  Rd5 {[%clk 0:00:44]} 44. f3 {[%clk 0:00:30]}  Nb5 {[%clk 0:00:43]} 45. Ke4 {[%clk 0:00:28]}  Nxd6+ {[%clk 0:00:43]} 46. Kxd5 {[%clk 0:00:22]}  Nxb7 {[%clk 0:00:44]} 47. Kxc4 {[%clk 0:00:19]}  b2 {[%clk 0:00:44]} 0-1


[Site "https://www.chess.com"]

[Event "Titled Tuesday Blitz June 27 Early 2023"]
[White "Jovic, Stanoje"]
[Black "Nozdrachev, Leonid"]
[WhiteFideId "905020"]
[BlackFideId "24113433"]
[WhiteElo "2505"]
[BlackElo "2589"]
[Result "0-1"]
[Round "11"]
[TimeControl "180+2"]
[Date "2023.06.27"]
[WhiteClock "0:00:00"]
[BlackClock "0:00:11"]
[Board "44"]

1. c4 {[%clk 0:03:00]}  e5 {[%clk 0:02:58]} 2. g3 {[%clk 0:03:01]}  Nf6 {[%clk 0:02:45]} 3. Bg2 {[%clk 0:03:01]}  c6 {[%clk 0:02:37]} 4. d4 {[%clk 0:03:00]}  Bb4+ {[%clk 0:02:32]} 5. Bd2 {[%clk 0:02:59]}  Bxd2+ {[%clk 0:02:28]} 6. Qxd2 {[%clk 0:02:59]}  d6 {[%clk 0:02:28]} 7. Nc3 {[%clk 0:02:53]}  O-O {[%clk 0:02:25]} 8. dxe5 {[%clk 0:02:47]}  dxe5 {[%clk 0:02:24]} 9. Qxd8 {[%clk 0:02:47]}  Rxd8 {[%clk 0:02:25]} 10. Nf3 {[%clk 0:02:47]}  Nbd7 {[%clk 0:02:15]} 11. O-O-O {[%clk 0:02:46]}  Re8 {[%clk 0:02:14]} 12. h3 {[%clk 0:02:41]}  Kf8 {[%clk 0:02:09]} 13. Rd6 {[%clk 0:02:40]}  Nc5 {[%clk 0:02:07]} 14. Ng5 {[%clk 0:02:18]}  Bf5 {[%clk 0:01:55]} 15. e4 {[%clk 0:02:07]}  Bc8 {[%clk 0:01:41]} 16. b4 {[%clk 0:02:03]}  Na6 {[%clk 0:01:36]} 17. a3 {[%clk 0:02:01]}  Nc7 {[%clk 0:01:32]} 18. Rhd1 {[%clk 0:01:59]}  Be6 {[%clk 0:01:31]} 19. c5 {[%clk 0:01:47]}  Bb3 {[%clk 0:01:29]} 20. R1d2 {[%clk 0:01:46]}  h6 {[%clk 0:01:28]} 21. Nf3 {[%clk 0:01:45]}  a5 {[%clk 0:01:09]} 22. Kb2 {[%clk 0:01:42]}  axb4 {[%clk 0:01:06]} 23. axb4 {[%clk 0:01:42]}  Bc4 {[%clk 0:01:06]} 24. g4 {[%clk 0:01:32]}  Nb5 {[%clk 0:00:37]} 25. Nxb5 {[%clk 0:01:23]}  cxb5 {[%clk 0:00:38]} 26. Ne1 {[%clk 0:01:08]}  Ra2+ {[%clk 0:00:29]} 27. Kc3 {[%clk 0:01:08]}  Ra3+ {[%clk 0:00:26]} 28. Kb2 {[%clk 0:00:57]}  Rb3+ {[%clk 0:00:24]} 29. Kc2 {[%clk 0:00:52]}  Rxb4 {[%clk 0:00:23]} 30. Rd8 {[%clk 0:00:50]}  Ra4 {[%clk 0:00:18]} 31. Rxe8+ {[%clk 0:00:45]}  Kxe8 {[%clk 0:00:18]} 32. Kc3 {[%clk 0:00:43]}  Be6 {[%clk 0:00:16]} 33. f3 {[%clk 0:00:41]}  b4+ {[%clk 0:00:15]} 34. Kd3 {[%clk 0:00:36]}  Nd7 {[%clk 0:00:15]} 35. Rc2 {[%clk 0:00:26]}  b3 {[%clk 0:00:14]} 36. Rb2 {[%clk 0:00:24]}  Nxc5+ {[%clk 0:00:13]} 37. Kd2 {[%clk 0:00:25]}  Ra2 {[%clk 0:00:12]} 38. Kc1 {[%clk 0:00:20]}  Ra1+ {[%clk 0:00:10]} 39. Kd2 {[%clk 0:00:19]}  Rxe1 {[%clk 0:00:09]} 40. Kxe1 {[%clk 0:00:18]}  Nd3+ {[%clk 0:00:09]} 41. Kd2 {[%clk 0:00:18]}  Nxb2 {[%clk 0:00:10]} 42. Kc3 {[%clk 0:00:17]}  Na4+ {[%clk 0:00:11]} 43. Kd2 {[%clk 0:00:00]}  b2 {[%clk 0:00:11]} 0-1


[Site "https://www.chess.com"]

[Event "Titled Tuesday Blitz June 27 Early 2023"]
[White "Zavgorodniy, Sergiy"]
[Black "Luukkonen, Tommi"]
[WhiteFideId "14110148"]
[BlackFideId "501808"]
[WhiteElo "2588"]
[BlackElo "2483"]
[Result "0-1"]
[Round "11"]
[TimeControl "180+2"]
[Date "2023.06.27"]
[WhiteClock "0:01:38"]
[BlackClock "0:01:23"]
[Board "45"]

1. d4 {[%clk 0:03:00]}  Nf6 {[%clk 0:02:55]} 2. c4 {[%clk 0:03:00]}  g6 {[%clk 0:02:55]} 3. Nc3 {[%clk 0:03:00]}  Bg7 {[%clk 0:02:56]} 4. e4 {[%clk 0:03:00]}  O-O {[%clk 0:02:56]} 5. Be2 {[%clk 0:03:01]}  d6 {[%clk 0:02:56]} 6. Nf3 {[%clk 0:03:01]}  e5 {[%clk 0:02:56]} 7. O-O {[%clk 0:03:01]}  Na6 {[%clk 0:02:57]} 8. Bg5 {[%clk 0:03:00]}  h6 {[%clk 0:02:56]} 9. Be3 {[%clk 0:02:59]}  Ng4 {[%clk 0:02:56]} 10. Bc1 {[%clk 0:03:00]}  Qe8 {[%clk 0:02:56]} 11. d5 {[%clk 0:02:59]}  f5 {[%clk 0:02:55]} 12. exf5 {[%clk 0:02:59]}  gxf5 {[%clk 0:02:55]} 13. Ne1 {[%clk 0:02:56]}  e4 {[%clk 0:02:41]} 14. Bxg4 {[%clk 0:02:52]}  fxg4 {[%clk 0:02:42]} 15. Nc2 {[%clk 0:02:51]}  Nc5 {[%clk 0:02:41]} 16. Nd4 {[%clk 0:02:47]}  c6 {[%clk 0:02:35]} 17. Be3 {[%clk 0:02:44]}  Nd3 {[%clk 0:02:34]} 18. Qd2 {[%clk 0:02:41]}  Qg6 {[%clk 0:02:30]} 19. dxc6 {[%clk 0:02:33]}  bxc6 {[%clk 0:02:30]} 20. Nxc6 {[%clk 0:02:34]}  Rf7 {[%clk 0:02:22]} 21. Nd5 {[%clk 0:02:30]}  Kh7 {[%clk 0:02:20]} 22. Nce7 {[%clk 0:02:27]}  Qe6 {[%clk 0:02:14]} 23. Nxc8 {[%clk 0:02:26]}  Rxc8 {[%clk 0:02:14]} 24. b3 {[%clk 0:02:13]}  Bxa1 {[%clk 0:02:12]} 25. Rxa1 {[%clk 0:02:14]}  Rcf8 {[%clk 0:02:04]} 26. Rf1 {[%clk 0:02:13]}  h5 {[%clk 0:02:00]} 27. Bd4 {[%clk 0:02:11]}  Qg6 {[%clk 0:01:46]} 28. g3 {[%clk 0:02:03]}  h4 {[%clk 0:01:45]} 29. Be3 {[%clk 0:01:55]}  Ne5 {[%clk 0:01:42]} 30. Kh1 {[%clk 0:01:53]}  hxg3 {[%clk 0:01:39]} 31. hxg3 {[%clk 0:01:49]}  Nf3 {[%clk 0:01:39]} 32. Kg2 {[%clk 0:01:42]}  Nxd2 {[%clk 0:01:34]} 33. Bxd2 {[%clk 0:01:43]}  Qh5 {[%clk 0:01:26]} 34. Rh1 {[%clk 0:01:40]}  Rxf2+ {[%clk 0:01:25]} 35. Kg1 {[%clk 0:01:39]}  Rf1+ {[%clk 0:01:24]} 36. Kg2 {[%clk 0:01:38]}  R8f2# {[%clk 0:01:23]} 0-1


[Site "https://www.chess.com"]

[Event "Titled Tuesday Blitz June 27 Early 2023"]
[White "NicolaiMaxime"]
[Black "Rosh Jain"]
[BlackFideId "25789465"]
[WhiteElo "2586"]
[BlackElo "2337"]
[Result "1-0"]
[Round "11"]
[TimeControl "180+2"]
[Date "2023.06.27"]
[WhiteClock "0:00:12"]
[BlackClock "0:00:07"]
[Board "46"]

1. c4 {[%clk 0:03:00]}  Nf6 {[%clk 0:02:58]} 2. Nc3 {[%clk 0:03:01]}  e6 {[%clk 0:02:59]} 3. Nf3 {[%clk 0:03:00]}  d5 {[%clk 0:02:56]} 4. e3 {[%clk 0:03:01]}  c5 {[%clk 0:02:55]} 5. cxd5 {[%clk 0:03:01]}  exd5 {[%clk 0:02:55]} 6. d4 {[%clk 0:03:01]}  Nc6 {[%clk 0:02:54]} 7. Be2 {[%clk 0:03:01]}  Be7 {[%clk 0:02:53]} 8. dxc5 {[%clk 0:03:01]}  Bxc5 {[%clk 0:02:54]} 9. O-O {[%clk 0:03:02]}  O-O {[%clk 0:02:54]} 10. b3 {[%clk 0:03:02]}  Be6 {[%clk 0:02:52]} 11. Bb2 {[%clk 0:03:03]}  Ne4 {[%clk 0:02:47]} 12. Rc1 {[%clk 0:02:55]}  Bd6 {[%clk 0:02:41]} 13. Nb5 {[%clk 0:02:54]}  Be7 {[%clk 0:02:35]} 14. Nbd4 {[%clk 0:02:54]}  Nxd4 {[%clk 0:02:35]} 15. Nxd4 {[%clk 0:02:53]}  Bf6 {[%clk 0:02:30]} 16. Bf3 {[%clk 0:02:46]}  Qe7 {[%clk 0:02:24]} 17. Qe2 {[%clk 0:02:19]}  Ng5 {[%clk 0:02:21]} 18. Bg4 {[%clk 0:02:17]}  Rac8 {[%clk 0:02:04]} 19. Nxe6 {[%clk 0:02:10]}  Nxe6 {[%clk 0:02:01]} 20. Rfd1 {[%clk 0:02:02]}  Rxc1 {[%clk 0:01:54]} 21. Rxc1 {[%clk 0:02:00]}  Bxb2 {[%clk 0:01:50]} 22. Qxb2 {[%clk 0:02:01]}  Qg5 {[%clk 0:01:42]} 23. Bf3 {[%clk 0:01:28]}  d4 {[%clk 0:01:35]} 24. h4 {[%clk 0:01:05]}  Qh6 {[%clk 0:01:25]} 25. Re1 {[%clk 0:00:59]}  dxe3 {[%clk 0:01:23]} 26. Rxe3 {[%clk 0:01:00]}  Qxh4 {[%clk 0:01:23]} 27. Bxb7 {[%clk 0:01:00]}  Rd8 {[%clk 0:01:20]} 28. Bf3 {[%clk 0:00:59]}  Ng5 {[%clk 0:01:15]} 29. Be2 {[%clk 0:00:51]}  h6 {[%clk 0:01:09]} 30. b4 {[%clk 0:00:48]}  Ne6 {[%clk 0:00:57]} 31. b5 {[%clk 0:00:41]}  Qg5 {[%clk 0:00:50]} 32. a4 {[%clk 0:00:36]}  Nf4 {[%clk 0:00:42]} 33. Bf1 {[%clk 0:00:36]}  Rd1 {[%clk 0:00:40]} 34. Re8+ {[%clk 0:00:35]}  Kh7 {[%clk 0:00:37]} 35. Qc2+ {[%clk 0:00:35]}  Rd3 {[%clk 0:00:37]} 36. Bxd3+ {[%clk 0:00:34]}  g6 {[%clk 0:00:36]} 37. Be4 {[%clk 0:00:28]}  Nh3+ {[%clk 0:00:34]} 38. Kf1 {[%clk 0:00:26]}  Nf4 {[%clk 0:00:32]} 39. Qb2 {[%clk 0:00:23]}  f6 {[%clk 0:00:24]} 40. Qb3 {[%clk 0:00:22]}  Ne6 {[%clk 0:00:22]} 41. Re7+ {[%clk 0:00:18]}  Kh8 {[%clk 0:00:20]} 42. Rxe6 {[%clk 0:00:15]}  Qc1+ {[%clk 0:00:20]} 43. Ke2 {[%clk 0:00:15]}  Qc8 {[%clk 0:00:14]} 44. Bxg6 {[%clk 0:00:13]}  Kg7 {[%clk 0:00:12]} 45. Be4 {[%clk 0:00:13]}  Qc7 {[%clk 0:00:10]} 46. Qg3+ {[%clk 0:00:11]}  Qxg3 {[%clk 0:00:10]} 47. fxg3 {[%clk 0:00:12]}  Kf7 {[%clk 0:00:09]} 48. Ra6 {[%clk 0:00:12]}  f5 {[%clk 0:00:07]} 49. Bxf5 {[%clk 0:00:12]} 1-0


[Site "https://www.chess.com"]

[Event "Titled Tuesday Blitz June 27 Early 2023"]
[White "Niekras, Dawid"]
[Black "Sevian, Samuel"]
[WhiteFideId "1160451"]
[BlackFideId "2040506"]
[WhiteElo "2601"]
[BlackElo "3016"]
[Result "0-1"]
[Round "11"]
[TimeControl "180+2"]
[Date "2023.06.27"]
[WhiteClock "0:00:00"]
[BlackClock "0:01:11"]
[Board "47"]

1. e4 {[%clk 0:03:00]}  c5 {[%clk 0:02:47]} 2. Nf3 {[%clk 0:03:00]}  e6 {[%clk 0:02:47]} 3. d4 {[%clk 0:03:00]}  cxd4 {[%clk 0:02:48]} 4. Nxd4 {[%clk 0:03:01]}  Nc6 {[%clk 0:02:49]} 5. Nc3 {[%clk 0:03:00]}  a6 {[%clk 0:02:49]} 6. Nxc6 {[%clk 0:03:00]}  bxc6 {[%clk 0:02:50]} 7. e5 {[%clk 0:03:00]}  f6 {[%clk 0:02:47]} 8. Bd3 {[%clk 0:02:57]}  Qa5 {[%clk 0:02:47]} 9. Qh5+ {[%clk 0:02:42]}  Kd8 {[%clk 0:02:47]} 10. f4 {[%clk 0:01:43]}  Rb8 {[%clk 0:02:39]} 11. O-O {[%clk 0:01:40]}  Ne7 {[%clk 0:02:32]} 12. Ne4 {[%clk 0:01:24]}  Nf5 {[%clk 0:02:31]} 13. Kh1 {[%clk 0:01:14]}  Be7 {[%clk 0:02:28]} 14. Bd2 {[%clk 0:01:09]}  Qd5 {[%clk 0:02:21]} 15. c4 {[%clk 0:00:57]}  g6 {[%clk 0:02:21]} 16. cxd5 {[%clk 0:00:51]}  gxh5 {[%clk 0:02:20]} 17. d6 {[%clk 0:00:44]}  Bf8 {[%clk 0:02:14]} 18. Nxf6 {[%clk 0:00:44]}  Nxd6 {[%clk 0:02:13]} 19. exd6 {[%clk 0:00:40]}  Bxd6 {[%clk 0:02:14]} 20. Ne4 {[%clk 0:00:36]}  Be7 {[%clk 0:02:12]} 21. Bc3 {[%clk 0:00:24]}  Rf8 {[%clk 0:02:12]} 22. b3 {[%clk 0:00:24]}  d5 {[%clk 0:02:09]} 23. Ng5 {[%clk 0:00:22]}  h6 {[%clk 0:02:06]} 24. Nf3 {[%clk 0:00:22]}  c5 {[%clk 0:02:06]} 25. Be5 {[%clk 0:00:20]}  Rb4 {[%clk 0:02:03]} 26. Rac1 {[%clk 0:00:21]}  Bb7 {[%clk 0:02:01]} 27. Rfd1 {[%clk 0:00:20]}  Kd7 {[%clk 0:01:53]} 28. Kg1 {[%clk 0:00:13]}  h4 {[%clk 0:01:53]} 29. h3 {[%clk 0:00:12]}  Rg8 {[%clk 0:01:51]} 30. Kf2 {[%clk 0:00:12]}  a5 {[%clk 0:01:49]} 31. Rb1 {[%clk 0:00:09]}  Ke8 {[%clk 0:01:46]} 32. Rd2 {[%clk 0:00:08]}  Bc6 {[%clk 0:01:45]} 33. Ke3 {[%clk 0:00:08]}  Rg3 {[%clk 0:01:40]} 34. Kf2 {[%clk 0:00:08]}  Rg8 {[%clk 0:01:39]} 35. Re2 {[%clk 0:00:08]}  Kf7 {[%clk 0:01:24]} 36. Bc3 {[%clk 0:00:07]}  Rxf4 {[%clk 0:01:23]} 37. Bd2 {[%clk 0:00:06]}  Rf6 {[%clk 0:01:21]} 38. Ke1 {[%clk 0:00:06]}  Bd6 {[%clk 0:01:20]} 39. Be3 {[%clk 0:00:04]}  d4 {[%clk 0:01:20]} 40. Bf2 {[%clk 0:00:03]}  Bxf3 {[%clk 0:01:17]} 41. gxf3 {[%clk 0:00:03]}  Rxf3 {[%clk 0:01:18]} 42. Be4 {[%clk 0:00:03]}  Rxh3 {[%clk 0:01:17]} 43. Kd2 {[%clk 0:00:03]}  Rc3 {[%clk 0:01:15]} 44. Kd1 {[%clk 0:00:01]}  Bf4 {[%clk 0:01:15]} 45. Be1 {[%clk 0:00:01]}  Rh3 {[%clk 0:01:12]} 46. Rc2 {[%clk 0:00:01]}  Rg1 {[%clk 0:01:11]} 47. Rxc5 {[%clk 0:00:00]}  Re3 {[%clk 0:01:11]} 0-1


[Site "https://www.chess.com"]

[Event "Titled Tuesday Blitz June 27 Early 2023"]
[White "Yurovskykh, Oleksandr"]
[Black "Pranav, V"]
[WhiteFideId "14134020"]
[BlackFideId "25060783"]
[WhiteElo "2585"]
[BlackElo "2992"]
[Result "0-1"]
[Round "11"]
[TimeControl "180+2"]
[Date "2023.06.27"]
[WhiteClock "0:00:34"]
[BlackClock "0:01:46"]
[Board "49"]

1. d4 {[%clk 0:02:55]}  Nf6 {[%clk 0:02:59]} 2. Nf3 {[%clk 0:02:55]}  e6 {[%clk 0:03:00]} 3. Bf4 {[%clk 0:02:55]}  b6 {[%clk 0:03:00]} 4. e3 {[%clk 0:02:55]}  Bb7 {[%clk 0:03:00]} 5. Bd3 {[%clk 0:02:56]}  Be7 {[%clk 0:03:01]} 6. h3 {[%clk 0:02:56]}  O-O {[%clk 0:03:02]} 7. O-O {[%clk 0:02:56]}  d6 {[%clk 0:03:02]} 8. Bh2 {[%clk 0:02:56]}  Nbd7 {[%clk 0:03:03]} 9. Nbd2 {[%clk 0:02:55]}  Re8 {[%clk 0:03:04]} 10. c3 {[%clk 0:02:55]}  Bf8 {[%clk 0:03:04]} 11. Qe2 {[%clk 0:02:54]}  e5 {[%clk 0:03:05]} 12. dxe5 {[%clk 0:02:54]}  dxe5 {[%clk 0:03:04]} 13. Ba6 {[%clk 0:02:41]}  Bxa6 {[%clk 0:03:03]} 14. Qxa6 {[%clk 0:02:42]}  e4 {[%clk 0:03:03]} 15. Nd4 {[%clk 0:02:40]}  c5 {[%clk 0:02:59]} 16. Nc6 {[%clk 0:02:33]}  Qc8 {[%clk 0:02:39]} 17. Qxc8 {[%clk 0:02:33]}  Rexc8 {[%clk 0:02:40]} 18. Ne5 {[%clk 0:02:33]}  Rd8 {[%clk 0:02:40]} 19. Rfd1 {[%clk 0:02:25]}  Bd6 {[%clk 0:02:32]} 20. Nxd7 {[%clk 0:02:15]}  Bxh2+ {[%clk 0:02:33]} 21. Kxh2 {[%clk 0:02:15]}  Rxd7 {[%clk 0:02:34]} 22. Nc4 {[%clk 0:02:09]}  Rad8 {[%clk 0:02:34]} 23. Rxd7 {[%clk 0:02:09]}  Rxd7 {[%clk 0:02:35]} 24. a4 {[%clk 0:02:09]}  Kf8 {[%clk 0:02:27]} 25. Kg1 {[%clk 0:02:10]}  Ke7 {[%clk 0:02:10]} 26. Kf1 {[%clk 0:02:08]}  Rd5 {[%clk 0:02:10]} 27. Ke2 {[%clk 0:02:04]}  Rg5 {[%clk 0:02:10]} 28. g3 {[%clk 0:01:59]}  Rh5 {[%clk 0:02:10]} 29. h4 {[%clk 0:01:51]}  Rf5 {[%clk 0:02:09]} 30. Nd2 {[%clk 0:01:50]}  h6 {[%clk 0:02:04]} 31. a5 {[%clk 0:01:47]}  b5 {[%clk 0:02:04]} 32. a6 {[%clk 0:01:47]}  Kd6 {[%clk 0:02:04]} 33. c4 {[%clk 0:01:44]}  Kc6 {[%clk 0:01:54]} 34. Ra5 {[%clk 0:01:39]}  bxc4 {[%clk 0:01:51]} 35. Nxc4 {[%clk 0:01:40]}  Ng4 {[%clk 0:01:50]} 36. Nd2 {[%clk 0:01:18]}  Rxf2+ {[%clk 0:01:49]} 37. Ke1 {[%clk 0:01:18]}  f5 {[%clk 0:01:47]} 38. Ra4 {[%clk 0:00:34]}  Rg2 {[%clk 0:01:46]} 0-1


[Site "https://www.chess.com"]

[Event "Titled Tuesday Blitz June 27 Early 2023"]
[White "Ohanyan, Emin"]
[Black "Janaszak, Dawid"]
[WhiteFideId "13312022"]
[BlackFideId "1119206"]
[WhiteElo "2793"]
[BlackElo "2578"]
[Result "1-0"]
[Round "11"]
[TimeControl "180+2"]
[Date "2023.06.27"]
[WhiteClock "0:00:03"]
[BlackClock "0:00:04"]
[Board "51"]

1. d4 {[%clk 0:03:00]}  d5 {[%clk 0:02:59]} 2. c4 {[%clk 0:02:59]}  c6 {[%clk 0:02:59]} 3. Nf3 {[%clk 0:02:59]}  g6 {[%clk 0:02:59]} 4. Nc3 {[%clk 0:02:57]}  Bg7 {[%clk 0:02:59]} 5. cxd5 {[%clk 0:02:58]}  cxd5 {[%clk 0:03:00]} 6. Bf4 {[%clk 0:02:58]}  a6 {[%clk 0:03:00]} 7. e3 {[%clk 0:02:58]}  Nc6 {[%clk 0:03:00]} 8. Be2 {[%clk 0:02:49]}  Nf6 {[%clk 0:03:00]} 9. O-O {[%clk 0:02:50]}  O-O {[%clk 0:02:58]} 10. Rc1 {[%clk 0:02:51]}  Bg4 {[%clk 0:02:56]} 11. Ne5 {[%clk 0:02:38]}  Bxe2 {[%clk 0:02:56]} 12. Qxe2 {[%clk 0:02:38]}  Rc8 {[%clk 0:02:54]} 13. Na4 {[%clk 0:02:24]}  Nxe5 {[%clk 0:02:41]} 14. Bxe5 {[%clk 0:02:14]}  Qa5 {[%clk 0:02:37]} 15. Nc5 {[%clk 0:02:05]}  b6 {[%clk 0:02:15]} 16. Nxa6 {[%clk 0:01:29]}  Rxc1 {[%clk 0:02:00]} 17. Rxc1 {[%clk 0:01:26]}  Qxa2 {[%clk 0:02:00]} 18. Qb5 {[%clk 0:01:06]}  Ne4 {[%clk 0:01:23]} 19. Bxg7 {[%clk 0:00:59]}  Kxg7 {[%clk 0:01:23]} 20. Qxb6 {[%clk 0:01:00]}  Rc8 {[%clk 0:01:22]} 21. Nc5 {[%clk 0:00:52]}  Nd6 {[%clk 0:00:40]} 22. Qb4 {[%clk 0:00:37]}  h5 {[%clk 0:00:29]} 23. h3 {[%clk 0:00:37]}  h4 {[%clk 0:00:26]} 24. b3 {[%clk 0:00:33]}  Ne4 {[%clk 0:00:22]} 25. Rf1 {[%clk 0:00:14]}  Nd2 {[%clk 0:00:22]} 26. Rc1 {[%clk 0:00:08]}  Ne4 {[%clk 0:00:20]} 27. Qe1 {[%clk 0:00:08]}  Nxc5 {[%clk 0:00:18]} 28. Rxc5 {[%clk 0:00:06]}  Rb8 {[%clk 0:00:18]} 29. Rxd5 {[%clk 0:00:03]}  Rxb3 {[%clk 0:00:18]} 30. Rc5 {[%clk 0:00:03]}  Rb2 {[%clk 0:00:17]} 31. Rc1 {[%clk 0:00:04]}  Rd2 {[%clk 0:00:16]} 32. Qf1 {[%clk 0:00:04]}  Re2 {[%clk 0:00:15]} 33. Rd1 {[%clk 0:00:04]}  Qc2 {[%clk 0:00:14]} 34. Rc1 {[%clk 0:00:03]}  Qb2 {[%clk 0:00:14]} 35. Re1 {[%clk 0:00:04]}  Rd2 {[%clk 0:00:14]} 36. Rd1 {[%clk 0:00:04]}  Re2 {[%clk 0:00:14]} 37. d5 {[%clk 0:00:04]}  Qc2 {[%clk 0:00:14]} 38. Rd4 {[%clk 0:00:03]}  Qb2 {[%clk 0:00:13]} 39. Rxh4 {[%clk 0:00:02]}  Rc2 {[%clk 0:00:13]} 40. Rd4 {[%clk 0:00:02]}  Rc1 {[%clk 0:00:13]} 41. Rd1 {[%clk 0:00:02]}  Rc2 {[%clk 0:00:14]} 42. Re1 {[%clk 0:00:02]}  Rd2 {[%clk 0:00:13]} 43. Rd1 {[%clk 0:00:02]}  Rc2 {[%clk 0:00:14]} 44. d6 {[%clk 0:00:03]}  exd6 {[%clk 0:00:14]} 45. Rxd6 {[%clk 0:00:04]}  Rc1 {[%clk 0:00:14]} 46. Rd1 {[%clk 0:00:05]}  Rc2 {[%clk 0:00:15]} 47. Ra1 {[%clk 0:00:05]}  Qc3 {[%clk 0:00:15]} 48. Rb1 {[%clk 0:00:04]}  Qd2 {[%clk 0:00:15]} 49. Qe1 {[%clk 0:00:05]}  Qd3 {[%clk 0:00:15]} 50. Rd1 {[%clk 0:00:05]}  Qf5 {[%clk 0:00:15]} 51. Rd8 {[%clk 0:00:03]}  Qc5 {[%clk 0:00:15]} 52. Qa1+ {[%clk 0:00:03]}  f6 {[%clk 0:00:15]} 53. Rd7+ {[%clk 0:00:03]}  Kh6 {[%clk 0:00:15]} 54. Qxf6 {[%clk 0:00:03]}  Rc1+ {[%clk 0:00:11]} 55. Kh2 {[%clk 0:00:03]}  Qc8 {[%clk 0:00:04]} 56. Qh4# {[%clk 0:00:03]} 1-0


[Site "https://www.chess.com"]

[Event "Titled Tuesday Blitz June 27 Early 2023"]
[White "Tanenbaum, Zachary"]
[Black "Sargsyan, Anna M."]
[WhiteFideId "2060850"]
[BlackFideId "13308130"]
[WhiteElo "2722"]
[BlackElo "2567"]
[Result "0-1"]
[Round "11"]
[TimeControl "180+2"]
[Date "2023.06.27"]
[WhiteClock "0:00:00"]
[BlackClock "0:00:07"]
[Board "52"]

1. e4 {[%clk 0:03:00]}  c6 {[%clk 0:02:59]} 2. d4 {[%clk 0:03:00]}  d5 {[%clk 0:03:00]} 3. exd5 {[%clk 0:03:01]}  cxd5 {[%clk 0:03:01]} 4. Bd3 {[%clk 0:03:01]}  Nc6 {[%clk 0:03:02]} 5. c3 {[%clk 0:03:01]}  Nf6 {[%clk 0:03:02]} 6. Bf4 {[%clk 0:03:01]}  Bg4 {[%clk 0:02:55]} 7. Qb3 {[%clk 0:03:00]}  e5 {[%clk 0:02:52]} 8. dxe5 {[%clk 0:03:00]}  Nh5 {[%clk 0:02:52]} 9. Be3 {[%clk 0:03:00]}  Nxe5 {[%clk 0:02:52]} 10. Bb5+ {[%clk 0:02:57]}  Nc6 {[%clk 0:02:52]} 11. Nd2 {[%clk 0:02:51]}  Be7 {[%clk 0:02:48]} 12. Be2 {[%clk 0:02:46]}  Bxe2 {[%clk 0:02:46]} 13. Nxe2 {[%clk 0:02:47]}  O-O {[%clk 0:02:46]} 14. Qxb7 {[%clk 0:02:39]}  Ne5 {[%clk 0:02:28]} 15. Qa6 {[%clk 0:02:18]}  Ng4 {[%clk 0:02:10]} 16. Bd4 {[%clk 0:02:06]}  Re8 {[%clk 0:02:06]} 17. h3 {[%clk 0:02:02]}  Nh6 {[%clk 0:01:58]} 18. Qd3 {[%clk 0:01:47]}  Bg5 {[%clk 0:01:55]} 19. O-O {[%clk 0:01:43]}  Rb8 {[%clk 0:01:40]} 20. Nb3 {[%clk 0:01:40]}  Qc8 {[%clk 0:01:28]} 21. f4 {[%clk 0:01:17]}  Bh4 {[%clk 0:01:24]} 22. g4 {[%clk 0:01:11]}  Nxg4 {[%clk 0:01:14]} 23. Qf3 {[%clk 0:01:03]}  Ngf6 {[%clk 0:00:53]} 24. Be5 {[%clk 0:00:53]}  Rb7 {[%clk 0:00:52]} 25. Ned4 {[%clk 0:00:53]}  Ng3 {[%clk 0:00:38]} 26. Rf2 {[%clk 0:00:49]}  Nfe4 {[%clk 0:00:28]} 27. Rg2 {[%clk 0:00:44]}  f6 {[%clk 0:00:28]} 28. Bd6 {[%clk 0:00:19]}  Nxd6 {[%clk 0:00:24]} 29. Qxd5+ {[%clk 0:00:20]}  Nf7 {[%clk 0:00:24]} 30. Nf3 {[%clk 0:00:18]}  Qxh3 {[%clk 0:00:16]} 31. Nxh4 {[%clk 0:00:10]}  Rd7 {[%clk 0:00:06]} 32. Qf3 {[%clk 0:00:05]}  Qh1+ {[%clk 0:00:03]} 33. Kf2 {[%clk 0:00:05]}  Ne4+ {[%clk 0:00:04]} 34. Qxe4 {[%clk 0:00:05]}  Qxh4+ {[%clk 0:00:05]} 35. Kf3 {[%clk 0:00:04]}  Rxe4 {[%clk 0:00:05]} 36. Kxe4 {[%clk 0:00:04]}  Nd6+ {[%clk 0:00:05]} 37. Kf3 {[%clk 0:00:04]}  Qh5+ {[%clk 0:00:05]} 38. Kf2 {[%clk 0:00:03]}  Ne4+ {[%clk 0:00:06]} 39. Kg1 {[%clk 0:00:04]}  Qf3 {[%clk 0:00:06]} 40. Nd4 {[%clk 0:00:03]}  Rxd4 {[%clk 0:00:05]} 41. cxd4 {[%clk 0:00:03]}  Qe3+ {[%clk 0:00:06]} 42. Kh2 {[%clk 0:00:03]}  Qxf4+ {[%clk 0:00:06]} 43. Kg1 {[%clk 0:00:03]}  h5 {[%clk 0:00:06]} 44. Rf1 {[%clk 0:00:02]}  Qe3+ {[%clk 0:00:07]} 45. Kh2 {[%clk 0:00:03]}  h4 {[%clk 0:00:07]} 46. Rfg1 {[%clk 0:00:00]}  Ng3 {[%clk 0:00:07]} 0-1


[Site "https://www.chess.com"]